[Event "FIDE Women World Blitz 2021"]
[Site "Warsaw"]
[Date "2021.12.30"]
[Round "15.28"]
[White "Pavlidou, Ekaterini"]
[Black "Ovod, Evgenija"]
[Result "1-0"]
[ECO "D36"]
[WhiteElo "2177"]
[BlackElo "2366"]
[Annotator "NA"]
[PlyCount "60"]
[EventDate "2021.12.29"]
[EventType "swiss"]
[EventCountry "POL"]
[Tiebreak "Cut1 Buchholz"]
[SourceTitle "playchess.com"]
[Source "ChessBase"]
[SourceQuality "1"]
[TimeControl "180+2"]

1. d4 {[%emt 0:00:03]} d5 {[%emt 0:00:00]} 2. c4 {[%emt 0:00:01]} e6 {[%emt 0:
00:01]} 3. Nc3 {[%emt 0:00:02]} Nf6 {[%emt 0:00:01]} 4. cxd5 {[%emt 0:00:01]}
exd5 {[%emt 0:00:00]} 5. Bg5 {[%emt 0:00:03]} Be7 {[%emt 0:00:02]} 6. e3 {
[%emt 0:00:01]} Nbd7 {[%emt 0:00:02]} 7. Bd3 {[%emt 0:00:03]} Nf8 {[%emt 0:00:
02]} 8. Qc2 {[%emt 0:00:11]} Ne6 {[%emt 0:00:12]} 9. Bh4 {[%emt 0:00:01]} c6 {
[%emt 0:00:15]} 10. f3 {[%emt 0:00:10]} g6 {[%emt 0:00:19]} 11. Nge2 {[%emt 0:
00:05]} O-O {[%emt 0:00:05]} 12. O-O {[%emt 0:00:26]} Ng7 {[%emt 0:00:06]} 13.
g4 {[%emt 0:00:11]} Nfe8 {[%emt 0:00:11]} 14. Bf2 {[%emt 0:00:11]} f5 {[%emt 0:
00:04]} 15. h3 {[%emt 0:00:09]} fxg4 {[%emt 0:00:19]} 16. fxg4 {[%emt 0:00:01]}
Bh4 {[%emt 0:00:21]} 17. Bg3 {[%emt 0:00:04]} Bxg3 {[%emt 0:00:36]} 18. Rxf8+ {
[%emt 0:00:02]} Kxf8 {[%emt 0:00:01]} 19. Rf1+ {[%emt 0:00:01]} Kg8 {[%emt 0:
00:01]} 20. Nxg3 {[%emt 0:00:03]} Qd6 {[%emt 0:00:19]} 21. Qf2 {[%emt 0:00:02]}
Be6 {[%emt 0:00:01]} 22. e4 {[%emt 0:00:04]} dxe4 {[%emt 0:00:11]} 23. Ngxe4 {
[%emt 0:00:16]} Qe7 {[%emt 0:00:02]} 24. Ng5 {[%emt 0:00:08]} Nc7 {[%emt 0:00:
03]} 25. Nce4 {[%emt 0:00:27]} Nd5 {[%emt 0:00:10]} 26. Bc4 {[%emt 0:00:23]} h6
{[%emt 0:00:03]} 27. Bxd5 {[%emt 0:00:26]} hxg5 {[%emt 0:00:18]} 28. Nf6+ {
[%emt 0:00:02]} Kh8 {[%emt 0:00:03]} 29. Qe3 {[%emt 0:00:09]} Bxd5 {[%emt 0:00:
09]} 30. Qxg5 {[%emt 0:00:01]} Nf5 {[%emt 0:00:04]} 1-0

[Event "FIDE Women World Blitz 2021"]
[Site "Warsaw"]
[Date "2021.12.30"]
[Round "15.29"]
[White "Cyfka, Karina"]
[Black "Vantika Agrawal"]
[Result "0-1"]
[ECO "A16"]
[WhiteElo "2416"]
[BlackElo "2329"]
[Annotator "NA"]
[PlyCount "60"]
[EventDate "2021.12.29"]
[EventType "swiss"]
[EventCountry "POL"]
[Tiebreak "Cut1 Buchholz"]
[SourceTitle "playchess.com"]
[Source "ChessBase"]
[SourceQuality "1"]
[TimeControl "180+2"]

1. Nf3 {[%emt 0:00:01]} Nf6 {[%emt 0:00:01]} 2. e3 {[%emt 0:00:02]} g6 {
[%emt 0:00:01]} 3. c4 {[%emt 0:00:03]} Bg7 {[%emt 0:00:01]} 4. Nc3 {[%emt 0:00:
03]} O-O {[%emt 0:00:02]} 5. b3 {[%emt 0:00:04]} d6 {[%emt 0:00:01]} 6. Bb2 {
[%emt 0:00:01]} e5 {[%emt 0:00:01]} 7. d4 {[%emt 0:00:12]} Nbd7 {[%emt 0:00:01]
} 8. dxe5 {[%emt 0:00:03]} dxe5 {[%emt 0:00:02]} 9. Be2 {[%emt 0:00:10]} Re8 {
[%emt 0:00:05]} 10. O-O {[%emt 0:00:10]} e4 {[%emt 0:00:16]} 11. Nd4 {[%emt 0:
00:10]} a6 {[%emt 0:00:11]} 12. Rb1 {[%emt 0:00:23]} Ne5 {[%emt 0:00:05]} 13.
b4 {[%emt 0:00:21]} h5 {[%emt 0:00:13]} 14. c5 {[%emt 0:00:13]} Bg4 {[%emt 0:
00:16]} 15. h3 {[%emt 0:00:15]} Bxe2 {[%emt 0:00:02]} 16. Qxe2 {[%emt 0:00:02]}
Qe7 {[%emt 0:00:18]} 17. a3 {[%emt 0:00:09]} Rad8 {[%emt 0:00:02]} 18. Rfd1 {
[%emt 0:00:07]} c6 {[%emt 0:00:14]} 19. Qc2 {[%emt 0:00:17]} Ned7 {[%emt 0:00:
28]} 20. Na4 {[%emt 0:00:16]} Nd5 {[%emt 0:00:05]} 21. Ne2 {[%emt 0:00:02]}
Bxb2 {[%emt 0:00:09]} 22. Qxb2 {[%emt 0:00:02]} Ne5 {[%emt 0:00:04]} 23. Nd4 {
[%emt 0:00:05]} Qg5 {[%emt 0:00:09]} 24. Qc2 {[%emt 0:00:11]} Nf3+ {[%emt 0:00:
12]} 25. Kh1 {[%emt 0:00:13]} Nh4 {[%emt 0:00:05]} 26. Rg1 {[%emt 0:00:04]}
Nxe3 {[%emt 0:00:15]} 27. fxe3 {[%emt 0:00:02]} Qxe3 {[%emt 0:00:02]} 28. Nb3 {
[%emt 0:00:08]} Nf5 {[%emt 0:00:02]} 29. Rbe1 {[%emt 0:00:05]} Ng3+ {[%emt 0:
00:01]} 30. Kh2 {[%emt 0:00:01]} Qf4 {[%emt 0:00:01]} 0-1

[Event "FIDE Women World Blitz 2021"]
[Site "Warsaw"]
[Date "2021.12.30"]
[Round "15.30"]
[White "Michna, Marta"]
[Black "Zawadzka, Jolanta"]
[Result "1-0"]
[ECO "B02"]
[WhiteElo "2312"]
[BlackElo "2429"]
[Annotator "NA"]
[PlyCount "61"]
[EventDate "2021.12.29"]
[EventType "swiss"]
[EventCountry "POL"]
[Tiebreak "Cut1 Buchholz"]
[SourceTitle "playchess.com"]
[Source "ChessBase"]
[SourceQuality "1"]
[TimeControl "180+2"]

1. Nf3 {[%emt 0:00:01]} d5 {[%emt 0:00:01]} 2. d3 {[%emt 0:00:01]} Nf6 {
[%emt 0:00:02]} 3. Nbd2 {[%emt 0:00:00]} Bg4 {[%emt 0:00:04]} 4. e4 {[%emt 0:
00:06]} e6 {[%emt 0:00:06]} 5. Be2 {[%emt 0:00:01]} Be7 {[%emt 0:00:04]} 6. O-O
{[%emt 0:00:02]} O-O {[%emt 0:00:02]} 7. c3 {[%emt 0:00:00]} c5 {[%emt 0:00:04]
} 8. Re1 {[%emt 0:00:05]} Nc6 {[%emt 0:00:01]} 9. Qc2 {[%emt 0:00:02]} Qc7 {
[%emt 0:00:07]} 10. h3 {[%emt 0:00:02]} Bh5 {[%emt 0:00:05]} 11. a4 {[%emt 0:
00:15]} Rad8 {[%emt 0:00:11]} 12. Bf1 {[%emt 0:00:07]} d4 {[%emt 0:00:43]} 13.
g3 {[%emt 0:00:09]} Rd7 {[%emt 0:00:13]} 14. c4 {[%emt 0:00:43]} e5 {[%emt 0:
00:21]} 15. Nh4 {[%emt 0:00:11]} Bg6 {[%emt 0:00:12]} 16. Bg2 {[%emt 0:00:20]}
Nh5 {[%emt 0:00:18]} 17. Nf5 {[%emt 0:00:09]} Bd6 {[%emt 0:00:09]} 18. Rf1 {
[%emt 0:00:06]} Ne7 {[%emt 0:00:11]} 19. Qd1 {[%emt 0:00:18]} f6 {[%emt 0:00:
26]} 20. h4 {[%emt 0:00:08]} Bf7 {[%emt 0:00:06]} 21. Bf3 {[%emt 0:00:05]} g6 {
[%emt 0:00:06]} 22. Nh6+ {[%emt 0:00:03]} Kh8 {[%emt 0:00:01]} 23. Nxf7+ Rxf7 {
[%emt 0:00:00]} 24. Bxh5 {[%emt 0:00:02]} gxh5 {[%emt 0:00:01]} 25. Qxh5 {
[%emt 0:00:02]} Ng6 {[%emt 0:00:02]} 26. Nf3 {[%emt 0:00:12]} Rg7 {[%emt 0:00:
00]} 27. Kh1 {[%emt 0:00:03]} Rde7 {[%emt 0:00:05]} 28. Bh6 {[%emt 0:00:04]}
Rg8 {[%emt 0:00:01]} 29. Nh2 {[%emt 0:00:06]} Qd7 {[%emt 0:00:01]} 30. Qf5 {
[%emt 0:00:11]} Qe8 {[%emt 0:00:02]} 31. Qxf6+ {[%emt 0:00:03]} 1-0

[Event "FIDE Women World Blitz 2021"]
[Site "Warsaw"]
[Date "2021.12.30"]
[Round "15.31"]
[White "Paramzina, Anastasya"]
[Black "Bulmaga, Irina"]
[Result "1-0"]
[ECO "B01"]
[WhiteElo "2260"]
[BlackElo "2405"]
[Annotator "NA"]
[PlyCount "121"]
[EventDate "2021.12.29"]
[EventType "swiss"]
[EventCountry "POL"]
[Tiebreak "Cut1 Buchholz"]
[SourceTitle "playchess.com"]
[Source "ChessBase"]
[SourceQuality "1"]
[TimeControl "180+2"]

1. e4 {[%emt 0:00:01]} d5 {[%emt 0:00:02]} 2. exd5 {[%emt 0:00:03]} Qxd5 {
[%emt 0:00:01]} 3. Nc3 {[%emt 0:00:07]} Qd6 {[%emt 0:00:02]} 4. d4 {[%emt 0:00:
10]} Nf6 {[%emt 0:00:03]} 5. Nge2 {[%emt 0:00:02]} a6 {[%emt 0:00:03]} 6. Bf4 {
[%emt 0:00:02]} Qd8 {[%emt 0:00:04]} 7. Qd3 {[%emt 0:00:04]} e6 {[%emt 0:00:05]
} 8. O-O-O {[%emt 0:00:03]} Be7 {[%emt 0:00:02]} 9. h3 {[%emt 0:00:13]} b5 {
[%emt 0:00:04]} 10. g4 {[%emt 0:00:31]} Bb7 {[%emt 0:00:02]} 11. Rg1 {[%emt 0:
00:21]} c5 {[%emt 0:00:11]} 12. Qg3 {[%emt 0:00:24]} Nbd7 {[%emt 0:00:15]} 13.
dxc5 {[%emt 0:00:16]} b4 {[%emt 0:00:01]} 14. Na4 {[%emt 0:00:09]} Nd5 {
[%emt 0:00:02]} 15. Bg2 {[%emt 0:00:16]} O-O {[%emt 0:00:07]} 16. Bd6 {[%emt 0:
00:08]} Rc8 {[%emt 0:00:13]} 17. Bxe7 {[%emt 0:00:03]} Qxe7 {[%emt 0:00:01]}
18. Qd6 {[%emt 0:00:02]} Qxd6 {[%emt 0:00:36]} 19. cxd6 {[%emt 0:00:01]} Bc6 {
[%emt 0:00:08]} 20. b3 {[%emt 0:00:01]} Bxa4 {[%emt 0:00:13]} 21. bxa4 {
[%emt 0:00:06]} N5b6 {[%emt 0:00:02]} 22. Rd4 {[%emt 0:00:06]} a5 {[%emt 0:00:
03]} 23. a3 {[%emt 0:00:11]} bxa3 {[%emt 0:00:08]} 24. Rd3 {[%emt 0:00:15]} Nc4
{[%emt 0:00:08]} 25. Kb1 {[%emt 0:00:04]} Rb8+ {[%emt 0:00:02]} 26. Ka1 {
[%emt 0:00:02]} Rb2 {[%emt 0:00:19]} 27. Nd4 {[%emt 0:00:02]} Nde5 {[%emt 0:00:
16]} 28. Rxa3 {[%emt 0:00:01]} Nxa3 {[%emt 0:00:08]} 29. Kxb2 {[%emt 0:00:01]}
Nac4+ {[%emt 0:00:02]} 30. Ka2 {[%emt 0:00:03]} Nxd6 {[%emt 0:00:01]} 31. Nb5 {
[%emt 0:00:03]} Ndc4 {[%emt 0:00:07]} 32. f4 {[%emt 0:00:02]} Ng6 {[%emt 0:00:
05]} 33. f5 {[%emt 0:00:02]} Nf4 {[%emt 0:00:03]} 34. Be4 {[%emt 0:00:07]} Nb6
{[%emt 0:00:03]} 35. fxe6 {[%emt 0:00:02]} fxe6 {[%emt 0:00:01]} 36. Rd1 {
[%emt 0:00:03]} Nxa4 {[%emt 0:00:06]} 37. Rd6 {[%emt 0:00:02]} Nc5 {[%emt 0:00:
03]} 38. Bc6 {[%emt 0:00:02]} Nxh3 {[%emt 0:00:08]} 39. Nd4 {[%emt 0:00:02]}
Nf4 {[%emt 0:00:07]} 40. g5 {[%emt 0:00:01]} h6 {[%emt 0:00:02]} 41. gxh6 {
[%emt 0:00:01]} gxh6 {[%emt 0:00:01]} 42. Bd7 {[%emt 0:00:03]} Rf6 {[%emt 0:00:
06]} 43. Bc8 {[%emt 0:00:01]} Kg7 {[%emt 0:00:01]} 44. Rc6 {[%emt 0:00:01]} e5
{[%emt 0:00:08]} 45. Nf5+ {[%emt 0:00:03]} Kg6 {[%emt 0:00:03]} 46. Rxc5 {
[%emt 0:00:02]} Rxf5 {[%emt 0:00:01]} 47. Bxf5+ {[%emt 0:00:02]} Kxf5 {[%emt 0:
00:02]} 48. Rxa5 {[%emt 0:00:02]} h5 {[%emt 0:00:00]} 49. Ra8 {[%emt 0:00:02]}
h4 {[%emt 0:00:02]} 50. Rh8 {[%emt 0:00:01]} h3 {[%emt 0:00:01]} 51. c4 {
[%emt 0:00:01]} Ke4 {[%emt 0:00:02]} 52. Kb3 {[%emt 0:00:01]} Kd4 {[%emt 0:00:
03]} 53. Rh4 {[%emt 0:00:02]} Kc5 {[%emt 0:00:02]} 54. Kc3 {[%emt 0:00:02]}
Ne2+ {[%emt 0:00:03]} 55. Kd3 {[%emt 0:00:01]} Nf4+ {[%emt 0:00:01]} 56. Ke4 {
[%emt 0:00:02]} Kxc4 {[%emt 0:00:02]} 57. Kxe5 {[%emt 0:00:01]} Kd3 {[%emt 0:
00:01]} 58. Kxf4 {[%emt 0:00:02]} Ke2 {[%emt 0:00:00]} 59. Rxh3 {[%emt 0:00:01]
} Kf2 {[%emt 0:00:01]} 60. Re3 {[%emt 0:00:02]} Kg2 {[%emt 0:00:02]} 61. Rf3 {
[%emt 0:00:03]} 1-0

[Event "FIDE Women World Blitz 2021"]
[Site "Warsaw"]
[Date "2021.12.30"]
[Round "15.32"]
[White "Gaboyan, Susanna"]
[Black "Garcia Martin, Marta"]
[Result "0-1"]
[ECO "A50"]
[WhiteElo "2253"]
[BlackElo "2194"]
[Annotator "NA"]
[PlyCount "88"]
[EventDate "2021.12.29"]
[EventType "swiss"]
[EventCountry "POL"]
[Tiebreak "Cut1 Buchholz"]
[SourceTitle "playchess.com"]
[Source "ChessBase"]
[SourceQuality "1"]
[TimeControl "180+2"]

1. Nf3 {[%emt 0:00:01]} Nf6 {[%emt 0:00:04]} 2. g3 {[%emt 0:00:01]} b6 {
[%emt 0:00:01]} 3. Bg2 {[%emt 0:00:01]} Bb7 {[%emt 0:00:00]} 4. O-O {[%emt 0:
00:01]} g6 {[%emt 0:00:01]} 5. d4 {[%emt 0:00:01]} Bg7 {[%emt 0:00:01]} 6. c4 {
[%emt 0:00:01]} O-O {[%emt 0:00:01]} 7. Nc3 {[%emt 0:00:01]} Ne4 {[%emt 0:00:
01]} 8. Qc2 {[%emt 0:00:29]} Nxc3 {[%emt 0:00:02]} 9. bxc3 {[%emt 0:00:34]} Nc6
{[%emt 0:00:04]} 10. Bf4 {[%emt 0:00:03]} Na5 {[%emt 0:00:05]} 11. Nd2 {
[%emt 0:00:34]} Bxg2 {[%emt 0:00:03]} 12. Kxg2 {[%emt 0:00:02]} c5 {[%emt 0:00:
19]} 13. Qe4 {[%emt 0:00:07]} Rc8 {[%emt 0:00:07]} 14. Rac1 {[%emt 0:00:01]}
Nxc4 {[%emt 0:00:19]} 15. Nxc4 {[%emt 0:00:10]} d5 16. Qf3 {[%emt 0:00:24]}
dxc4 {[%emt 0:00:02]} 17. h4 {[%emt 0:00:02]} cxd4 {[%emt 0:00:02]} 18. cxd4 {
[%emt 0:00:07]} Qxd4 {[%emt 0:00:08]} 19. Rfd1 {[%emt 0:00:04]} Qf6 {[%emt 0:
00:14]} 20. Qa3 {[%emt 0:00:31]} e5 {[%emt 0:00:18]} 21. Bg5 {[%emt 0:00:02]}
Qc6+ {[%emt 0:00:00]} 22. Kh2 {[%emt 0:00:05]} c3 {[%emt 0:00:37]} 23. Qxa7 {
[%emt 0:00:06]} f6 {[%emt 0:00:34]} 24. Be3 {[%emt 0:00:03]} f5 {[%emt 0:00:02]
} 25. Qxb6 {[%emt 0:00:04]} Qc4 {[%emt 0:00:09]} 26. Rd7 {[%emt 0:00:02]} f4 {
[%emt 0:00:15]} 27. Qb7 {[%emt 0:00:01]} Bf6 {[%emt 0:00:16]} 28. Bb6 {[%emt 0:
00:14]} fxg3+ {[%emt 0:00:01]} 29. Kg2 {[%emt 0:00:04]} gxf2 {[%emt 0:00:09]}
30. Bxf2 {[%emt 0:00:01]} Qxe2 {[%emt 0:00:03]} 31. Qd5+ {[%emt 0:00:02]} Kh8 {
[%emt 0:00:02]} 32. Re1 {[%emt 0:00:02]} Qg4+ {[%emt 0:00:00]} 33. Kf1 {
[%emt 0:00:00]} c2 {[%emt 0:00:02]} 34. Qd2 {[%emt 0:00:06]} Qh3+ {[%emt 0:00:
01]} 35. Ke2 {[%emt 0:00:01]} Qg4+ {[%emt 0:00:02]} 36. Kf1 {[%emt 0:00:01]}
Bg7 {[%emt 0:00:02]} 37. Rc1 {[%emt 0:00:02]} Qc4+ {[%emt 0:00:03]} 38. Kg1 {
[%emt 0:00:02]} Qg4+ {[%emt 0:00:03]} 39. Kf1 {[%emt 0:00:01]} Qh3+ {[%emt 0:
00:01]} 40. Ke1 {[%emt 0:00:03]} Qh1+ {[%emt 0:00:02]} 41. Ke2 {[%emt 0:00:01]}
Qf3+ {[%emt 0:00:00]} 42. Kf1 {[%emt 0:00:04]} Bh6 {[%emt 0:00:01]} 43. Qe2 {
[%emt 0:00:03]} Qxe2+ {[%emt 0:00:02]} 44. Kxe2 {[%emt 0:00:01]} Bxc1 {[%emt 0:
00:01]} 0-1

[Event "FIDE Women World Blitz 2021"]
[Site "Warsaw"]
[Date "2021.12.30"]
[Round "15.33"]
[White "Badelka, Olga"]
[Black "Antolak, Julia"]
[Result "1-0"]
[ECO "A31"]
[WhiteElo "2188"]
[BlackElo "2334"]
[Annotator "NA"]
[PlyCount "123"]
[EventDate "2021.12.29"]
[EventType "swiss"]
[EventCountry "POL"]
[Tiebreak "Cut1 Buchholz"]
[SourceTitle "playchess.com"]
[Source "ChessBase"]
[SourceQuality "1"]
[TimeControl "180+2"]

1. d4 {[%emt 0:00:01]} Nf6 2. c4 {[%emt 0:00:01]} c5 {[%emt 0:00:01]} 3. Nf3 {
[%emt 0:00:00]} cxd4 {[%emt 0:00:02]} 4. Nxd4 {[%emt 0:00:01]} e5 {[%emt 0:00:
01]} 5. Nb5 {[%emt 0:00:02]} d5 {[%emt 0:00:06]} 6. cxd5 {[%emt 0:00:03]} Bc5 {
[%emt 0:00:07]} 7. e3 {[%emt 0:00:04]} O-O {[%emt 0:00:05]} 8. N5c3 {[%emt 0:
00:03]} e4 {[%emt 0:00:10]} 9. Be2 {[%emt 0:00:03]} Bf5 {[%emt 0:00:07]} 10.
O-O {[%emt 0:00:04]} Nbd7 {[%emt 0:00:06]} 11. Nd2 {[%emt 0:00:22]} Re8 {
[%emt 0:00:02]} 12. Nb3 {[%emt 0:00:02]} Bd6 {[%emt 0:00:01]} 13. Nd4 {[%emt 0:
00:06]} Bg6 {[%emt 0:00:01]} 14. b3 {[%emt 0:00:14]} a6 {[%emt 0:00:06]} 15.
Bb2 {[%emt 0:00:02]} Qe7 {[%emt 0:00:20]} 16. g3 {[%emt 0:00:12]} Ne5 {[%emt 0:
00:06]} 17. Qd2 {[%emt 0:00:18]} Rad8 {[%emt 0:00:02]} 18. Rfd1 {[%emt 0:00:08]
} Bb4 {[%emt 0:00:08]} 19. a3 {[%emt 0:00:02]} Bxc3 {[%emt 0:00:06]} 20. Qxc3 {
[%emt 0:00:07]} Nxd5 {[%emt 0:00:04]} 21. Qa5 {[%emt 0:00:05]} Nf6 {[%emt 0:00:
15]} 22. a4 {[%emt 0:00:23]} Rd5 {[%emt 0:00:22]} 23. Qe1 {[%emt 0:00:06]} Red8
{[%emt 0:00:02]} 24. Rdc1 {[%emt 0:00:27]} Bh5 {[%emt 0:00:13]} 25. Bxh5 {
[%emt 0:00:09]} Nxh5 {[%emt 0:00:02]} 26. Qe2 {[%emt 0:00:02]} Nf6 {[%emt 0:00:
05]} 27. Rc2 {[%emt 0:00:04]} Nd3 {[%emt 0:00:20]} 28. Ba3 {[%emt 0:00:08]} Qe8
{[%emt 0:00:03]} 29. Rd1 {[%emt 0:00:13]} h6 {[%emt 0:00:05]} 30. f3 {[%emt 0:
00:05]} Ne5 {[%emt 0:00:04]} 31. fxe4 {[%emt 0:00:05]} Nxe4 {[%emt 0:00:01]}
32. Qg2 {[%emt 0:00:02]} Nf6 {[%emt 0:00:07]} 33. Bb2 {[%emt 0:00:07]} Neg4 {
[%emt 0:00:02]} 34. Re1 {[%emt 0:00:03]} Re5 {[%emt 0:00:14]} 35. Rce2 {
[%emt 0:00:06]} Nxe3 {[%emt 0:00:11]} 36. Qxb7 {[%emt 0:00:01]} Rdd5 {[%emt 0:
00:11]} 37. Nf3 {[%emt 0:00:03]} Re6 {[%emt 0:00:02]} 38. Bxf6 {[%emt 0:00:02]}
gxf6 {[%emt 0:00:02]} 39. Qa7 {[%emt 0:00:07]} Rd3 {[%emt 0:00:04]} 40. Nh4 {
[%emt 0:00:03]} Rxb3 {[%emt 0:00:02]} 41. Qd4 {[%emt 0:00:04]} Ra3 {[%emt 0:00:
06]} 42. Qf4 {[%emt 0:00:01]} Nd5 {[%emt 0:00:02]} 43. Rxe6 {[%emt 0:00:01]}
fxe6 {[%emt 0:00:02]} 44. Qxh6 {[%emt 0:00:01]} Qf7 {[%emt 0:00:02]} 45. Qc1 {
[%emt 0:00:02]} Rxa4 {[%emt 0:00:03]} 46. Qc8+ {[%emt 0:00:01]} Kh7 {[%emt 0:
00:03]} 47. Rxe6 {[%emt 0:00:01]} Qa7+ {[%emt 0:00:02]} 48. Kg2 {[%emt 0:00:01]
} Ra2+ {[%emt 0:00:01]} 49. Kh3 {[%emt 0:00:01]} Qg7 {[%emt 0:00:03]} 50. Nf5 {
[%emt 0:00:06]} Nf4+ {[%emt 0:00:04]} 51. gxf4 {[%emt 0:00:04]} Ra3+ {[%emt 0:
00:03]} 52. Ng3 {[%emt 0:00:01]} Qh6+ {[%emt 0:00:01]} 53. Kg2 {[%emt 0:00:02]}
Ra2+ {[%emt 0:00:01]} 54. Re2 {[%emt 0:00:01]} Rxe2+ {[%emt 0:00:04]} 55. Nxe2
{[%emt 0:00:01]} Qg6+ {[%emt 0:00:00]} 56. Kf2 {[%emt 0:00:02]} a5 {[%emt 0:00:
02]} 57. Qc7+ {[%emt 0:00:02]} Kh6 {[%emt 0:00:01]} 58. Qxa5 {[%emt 0:00:01]}
Qe4 {[%emt 0:00:01]} 59. Qc3 {[%emt 0:00:01]} f5 {[%emt 0:00:02]} 60. Qh3+ {
[%emt 0:00:02]} Kg7 {[%emt 0:00:01]} 61. Qg2+ {[%emt 0:00:00]} Qxg2+ {[%emt 0:
00:03]} 62. Kxg2 1-0

[Event "FIDE Women World Blitz 2021"]
[Site "Warsaw"]
[Date "2021.12.30"]
[Round "15.34"]
[White "Efroimski, Marsel"]
[Black "Beydullayeva, Govhar"]
[Result "0-1"]
[ECO "B50"]
[WhiteElo "2419"]
[BlackElo "2278"]
[Annotator "NA"]
[PlyCount "116"]
[EventDate "2021.12.29"]
[EventType "swiss"]
[EventCountry "POL"]
[Tiebreak "Cut1 Buchholz"]
[SourceTitle "playchess.com"]
[Source "ChessBase"]
[SourceQuality "1"]
[TimeControl "180+2"]

1. e4 {[%emt 0:00:00]} c5 {[%emt 0:00:01]} 2. Nf3 {[%emt 0:00:02]} d6 {[%emt 0:
00:00]} 3. Nc3 {[%emt 0:00:01]} a6 {[%emt 0:00:02]} 4. e5 {[%emt 0:00:01]} Nc6
{[%emt 0:00:09]} 5. exd6 {[%emt 0:00:04]} e6 {[%emt 0:00:02]} 6. d4 {[%emt 0:
00:02]} Bxd6 {[%emt 0:00:16]} 7. dxc5 {[%emt 0:00:02]} Bxc5 {[%emt 0:00:00]} 8.
Qxd8+ {[%emt 0:00:03]} Nxd8 {[%emt 0:00:09]} 9. Ne4 {[%emt 0:00:05]} Be7 {
[%emt 0:00:08]} 10. Bf4 {[%emt 0:00:01]} Nf6 {[%emt 0:00:47]} 11. Nd6+ {
[%emt 0:00:02]} Kf8 {[%emt 0:00:22]} 12. Nxc8 {[%emt 0:00:03]} Rxc8 {[%emt 0:
00:00]} 13. O-O-O {[%emt 0:00:03]} Nd5 {[%emt 0:00:07]} 14. Bg3 {[%emt 0:00:20]
} f6 {[%emt 0:00:09]} 15. Kb1 {[%emt 0:00:08]} Kf7 {[%emt 0:00:01]} 16. c4 {
[%emt 0:00:04]} Nb6 {[%emt 0:00:13]} 17. b3 {[%emt 0:00:02]} Nc6 {[%emt 0:00:
01]} 18. Be2 {[%emt 0:00:08]} Rhd8 {[%emt 0:00:05]} 19. Bf4 {[%emt 0:00:02]}
Nd7 {[%emt 0:00:15]} 20. Be3 {[%emt 0:00:13]} Nc5 {[%emt 0:00:01]} 21. Rxd8 {
[%emt 0:00:12]} Rxd8 {[%emt 0:00:04]} 22. Rd1 {[%emt 0:00:02]} Rxd1+ {[%emt 0:
00:18]} 23. Bxd1 {[%emt 0:00:01]} e5 {[%emt 0:00:01]} 24. Bc2 {[%emt 0:00:20]}
g6 {[%emt 0:00:01]} 25. a3 {[%emt 0:00:05]} a5 {[%emt 0:00:01]} 26. Kb2 {
[%emt 0:00:03]} Ke6 {[%emt 0:00:07]} 27. Nd2 {[%emt 0:00:06]} f5 {[%emt 0:00:
03]} 28. f3 {[%emt 0:00:02]} Nd4 {[%emt 0:00:09]} 29. Bxd4 {[%emt 0:00:06]}
exd4 {[%emt 0:00:01]} 30. b4 {[%emt 0:00:02]} axb4 {[%emt 0:00:01]} 31. axb4 {
[%emt 0:00:01]} Na6 {[%emt 0:00:04]} 32. b5 {[%emt 0:00:21]} Nc5 {[%emt 0:00:
00]} 33. Nb3 {[%emt 0:00:17]} Nxb3 {[%emt 0:00:06]} 34. Kxb3 {[%emt 0:00:02]}
Bc5 {[%emt 0:00:03]} 35. f4 {[%emt 0:00:06]} b6 {[%emt 0:00:03]} 36. Bd3 {
[%emt 0:00:01]} h6 {[%emt 0:00:03]} 37. Kc2 {[%emt 0:00:02]} Bb4 {[%emt 0:00:
04]} 38. Kd1 {[%emt 0:00:01]} Bd6 {[%emt 0:00:05]} 39. g3 {[%emt 0:00:04]} g5 {
[%emt 0:00:05]} 40. fxg5 {[%emt 0:00:01]} hxg5 {[%emt 0:00:00]} 41. Ke2 {
[%emt 0:00:01]} Kf6 {[%emt 0:00:03]} 42. Bc2 {[%emt 0:00:10]} g4 {[%emt 0:00:
04]} 43. Kd3 {[%emt 0:00:05]} Bc5 {[%emt 0:00:02]} 44. Bd1 {[%emt 0:00:07]} Kg5
{[%emt 0:00:02]} 45. Be2 {[%emt 0:00:01]} f4 {[%emt 0:00:06]} 46. Ke4 {[%emt 0:
00:15]} f3 {[%emt 0:00:02]} 47. Bd3 {[%emt 0:00:04]} Bd6 {[%emt 0:00:05]} 48.
Kxd4 {[%emt 0:00:05]} Bc5+ {[%emt 0:00:00]} 49. Ke5 {[%emt 0:00:04]} Bg1 {
[%emt 0:00:01]} 50. Ke4 {[%emt 0:00:21]} Bxh2 {[%emt 0:00:03]} 51. c5 {[%emt 0:
00:06]} bxc5 {[%emt 0:00:01]} 52. b6 {[%emt 0:00:01]} Bxg3 {[%emt 0:00:01]} 53.
b7 {[%emt 0:00:01]} Bb8 {[%emt 0:00:02]} 54. Bf1 {[%emt 0:00:01]} Kh4 {[%emt 0:
00:03]} 55. Kf5 {[%emt 0:00:05]} Kg3 {[%emt 0:00:04]} 56. Kg5 {[%emt 0:00:01]}
Kf2 {[%emt 0:00:01]} 57. Bc4 {[%emt 0:00:01]} g3 {[%emt 0:00:01]} 58. Kf5 {
[%emt 0:00:03]} g2 {[%emt 0:00:01]} 0-1